lending/lending_fUSD_20250808
["ID","MTS","AMOUNT","RATE_DAILY","PERIOD"]
[378017080,1754669455502,-400.0,0.00018671,2]
[378017081,1754669455512,-437.00350667,0.00018671,2]
[378017082,1754669455522,-537.65,0.00018671,2]
[378017083,1754669455531,-220.13,0.00018671,2]
[378017084,1754669455540,-400.0,0.00018671,2]
[378017085,1754669455549,-436.33,0.00018671,2]
[378017086,1754669455559,-400.0,0.00018671,2]
[378017087,1754669455568,-579.55,0.00018671,2]
[378017088,1754669455577,-400.0,0.00018671,2]
[378017089,1754669455587,-400.0,0.00018671,2]
[378017090,1754669455596,-400.0,0.00018671,2]
[378017091,1754669455605,-400.0,0.00018671,2]
[378017092,1754669455614,-400.0,0.00018671,2]
[378017093,1754669455623,-400.0,0.00018671,2]
[378017094,1754669455632,-400.0,0.00018671,2]
[378017095,1754669455642,-406.91,0.00018671,2]
[378017096,1754669455651,-400.0,0.00018671,2]
[378017097,1754669455660,-400.0,0.00018671,2]
[378017098,1754669455669,-400.0,0.00018671,2]
[378017099,1754669455680,-400.0,0.00018671,2]
[378017100,1754669455689,-400.0,0.00018671,2]
[378017101,1754669455702,-400.0,0.00018671,2]
[378017102,1754669455711,-662.47,0.00018671,2]
[378017103,1754669455721,-458.85,0.00018671,2]
[378017104,1754669455731,-400.0,0.00018671,2]
[378017105,1754669455742,-400.0,0.00018671,2]
[378017106,1754669455751,-400.0,0.00018671,2]
[378017107,1754669455760,-400.0,0.00018671,2]
[378017108,1754669455770,-400.0,0.00018671,2]
[378017109,1754669455779,-400.0,0.00018671,2]
[378017110,1754669455788,-400.0,0.00018671,2]
[378017111,1754669455798,-400.0,0.00018671,2]
[378017112,1754669455807,-400.0,0.00018671,2]
[378017113,1754669455816,-267.93,0.00018671,2]
[378017114,1754669455825,-322.75,0.00018671,2]
[378017115,1754669455835,-400.0,0.00018671,2]
[378017116,1754669455844,-433.69,0.00018671,2]
[378017117,1754669455854,-400.0,0.00018671,2]
[378017118,1754669455863,-400.0,0.00018671,2]
[378017119,1754669455873,-547.84,0.00018671,2]
[378017120,1754669455882,-400.0,0.00018671,2]
[378017121,1754669455891,-400.0,0.00018671,2]
[378017122,1754669455901,-400.0,0.00018671,2]
[378017123,1754669455910,-400.0,0.00018671,2]
[378017124,1754669455920,-1483.89,0.00018671,2]
[378017125,1754669455929,-400.0,0.00018671,2]
[378017126,1754669455939,-452.85,0.00018671,2]
[378017127,1754669455948,-161.09705221,0.00018671,2]
[378017128,1754669455958,-400.0,0.00018671,2]
[378017129,1754669455969,-400.0,0.00018671,2]
[378017130,1754669455978,-400.0,0.00018671,2]
[378017131,1754669455988,-400.0,0.00018671,2]
[378017132,1754669455997,-400.0,0.00018671,2]
[378017133,1754669456007,-518.62,0.00018671,2]
[378017134,1754669456017,-408.77,0.00018671,2]
[378017135,1754669456027,-400.0,0.00018671,2]
[378017136,1754669456036,-400.0,0.00018671,2]
[378017137,1754669456046,-419.4,0.00018671,2]
[378017138,1754669456056,-400.0,0.00018671,2]
[378017139,1754669456065,-400.0,0.00018671,2]
[378017140,1754669456075,-400.0,0.00018671,2]
[378017141,1754669456084,-300.0,0.00018671,2]
[378017142,1754669456094,-400.0,0.00018671,2]
[378017143,1754669456103,-400.0,0.00018671,2]
[378017144,1754669456112,-400.0,0.00018671,2]
[378017145,1754669456122,-400.0,0.00018671,2]
[378017146,1754669456132,-400.0,0.00018671,2]
[378017147,1754669456141,-5082.64,0.00018671,2]
[378017148,1754669456151,-526.3,0.00018671,2]
[378017149,1754669456160,-493.26,0.00018671,2]
[378017150,1754669456170,-400.0,0.00018671,2]
[378017151,1754669456180,-400.0,0.00018671,2]
[378017152,1754669456190,-410.88825364,0.00018671,2]
[378017153,1754669456199,-1574.43,0.00018671,2]
[378017154,1754669456208,-400.0,0.00018671,2]
[378017155,1754669456218,-400.0,0.00018671,2]
[378017156,1754669456227,-470.32,0.00018671,2]
[378017157,1754669456237,-499.17,0.00018671,2]
[378017158,1754669456246,-400.0,0.00018671,2]
[378017159,1754669456256,-1383.82,0.00018671,2]
[378017160,1754669456265,-489.28,0.00018671,2]
[378017161,1754669456274,-865.71,0.00018671,2]
[378017162,1754669456284,-400.0,0.00018671,2]
[378017163,1754669456293,-763.19,0.00018671,2]
[378017164,1754669456302,-436.71,0.00018671,2]
[378017165,1754669456312,-400.0,0.00018671,2]
[378017166,1754669456321,-1642.57,0.00018671,2]
[378017167,1754669456330,-400.0,0.00018671,2]
[378017168,1754669456340,-414.27,0.00018671,2]
[378017169,1754669456350,-582.35,0.00018671,2]
[378017170,1754669456360,-400.0,0.00018671,2]
[378017171,1754669456369,-400.0,0.00018671,2]
[378017172,1754669456378,-400.0,0.00018671,2]
[378017173,1754669456387,-502.3,0.00018671,2]
[378017174,1754669456397,-400.0,0.00018671,2]
[378017175,1754669456406,-400.0,0.00018671,2]
[378017176,1754669456415,-238.35667858,0.00018671,2]
[378017177,1754669456424,-400.0,0.00018671,2]
[378017178,1754669456434,-400.0,0.00018671,2]
[378017179,1754669456443,-554.21,0.00018671,2]
[378017180,1754669456453,-536.27,0.00018671,2]
[378017181,1754669456462,-400.0,0.00018671,2]
[378017182,1754669456471,-400.0,0.00018671,2]
[378017183,1754669456480,-438.89,0.00018671,2]
[378017184,1754669456490,-760.61,0.00018671,2]
[378017185,1754669456499,-471.36,0.00018671,2]
[378017186,1754669456508,-1278.86,0.00018671,2]
[378017187,1754669456518,-772.31,0.00018671,2]
[378017188,1754669456528,-400.0,0.00018671,2]
[378017189,1754669456537,-400.0,0.00018671,2]
[378017190,1754669456547,-3084.06,0.00018671,2]
[378017191,1754669456556,-400.0,0.00018671,2]
[378017192,1754669456566,-534.26,0.00018671,2]
[378017193,1754669456576,-537.01,0.00018671,2]
[378017194,1754669456585,-400.0,0.00018671,2]
[378017195,1754669456594,-400.0,0.00018671,2]
[378017196,1754669456604,-400.0,0.00018671,2]
[378017197,1754669456613,-3353.0,0.00018671,2]
[378017198,1754669456623,-400.0,0.00018671,2]
[378017199,1754669456632,-693.11,0.00018671,2]
[378017200,1754669456641,-400.0,0.00018671,2]
[378017201,1754669456651,-11768.25,0.00018671,2]
[378017202,1754669456660,-400.0,0.00018671,2]
[378017203,1754669456669,-400.0,0.00018671,2]
[378017204,1754669456680,-412.67,0.00018671,2]
[378017205,1754669456690,-400.0,0.00018671,2]
[378017206,1754669456703,-400.0,0.00018671,2]
[378017207,1754669456712,-400.0,0.00018671,2]
[378017208,1754669456722,-400.0,0.00018671,2]
[378017209,1754669456731,-400.0,0.00018671,2]
[378017210,1754669456741,-548.19,0.00018671,2]
[378017211,1754669456751,-400.0,0.00018671,2]
[378017212,1754669456761,-400.0,0.00018671,2]
[378017213,1754669456771,-400.0,0.00018671,2]
[378017214,1754669456780,-496.75,0.00018671,2]
[378017215,1754669456791,-842.93,0.00018671,2]
[378017216,1754669456800,-400.0,0.00018671,2]
[378017217,1754669456809,-400.0,0.00018671,2]
[378017218,1754669456819,-400.0,0.00018671,2]
[378017219,1754669456828,-593.89,0.00018671,2]
[378017220,1754669456837,-200.0,0.00018671,2]
[378017221,1754669456847,-400.0,0.00018671,2]
[378017222,1754669456857,-400.0,0.00018671,2]
[378017223,1754669456866,-2566.79,0.00018671,2]
[378017224,1754669456875,-1773.58,0.00018671,2]
[378017225,1754669456884,-500.0,0.00018673,2]
[378017226,1754669456894,-500.0,0.00018673,2]
[378017227,1754669456904,-500.0,0.00018673,2]
[378017228,1754669456914,-7095.10274429,0.00018695,2]
[378017229,1754669456924,-231.73649548,0.00018696,2]
[378017230,1754669456935,-150.0,0.00018697,2]
[378017231,1754669456944,-2100.0,0.000187,6]
[378017232,1754669456954,-4436.08,0.000187,2]
[378017233,1754669456965,-150.0,0.00018701,2]
[378017234,1754669456975,-150.0,0.00018706,2]
[378017235,1754669456984,-150.0,0.00018709,2]
[378017236,1754669456995,-150.0,0.0001871,2]
[378017237,1754669457004,-150.0,0.00018715,2]
[378017238,1754669457014,-150.0,0.00018719,2]
[378017239,1754669457023,-150.0,0.00018723,2]
[378017240,1754669457033,-150.0,0.00018724,2]
[378017241,1754669457043,-150.0,0.00018728,2]
[378017242,1754669457053,-168.0,0.00018738,2]
[378017243,1754669457063,-150.0,0.00018739,2]
[378017244,1754669457074,-150.0,0.00018747,2]
[378017245,1754669457084,-150.0,0.0001875,2]
[378017246,1754669457094,-151.97041497,0.00018751,2]
[378017247,1754669457103,-150.0,0.00018765,2]
[378017248,1754669457113,-150.0,0.00018766,2]
[378017249,1754669457122,-791.36,0.00018769,2]
[378017250,1754669457132,-579.16,0.00018769,2]
[378017251,1754669457142,-400.0,0.00018769,2]
[378017252,1754669457151,-400.0,0.00018769,2]
[378017253,1754669457161,-400.0,0.00018769,2]
[378017254,1754669457171,-472.99,0.00018769,2]
[378017255,1754669457183,-400.0,0.00018769,2]
[378017256,1754669457192,-400.0,0.00018769,2]
[378017257,1754669457202,-400.0,0.00018769,2]
[378017258,1754669457212,-662.74,0.00018769,2]
[378017259,1754669457222,-1562.64,0.00018769,2]
[378017260,1754669457231,-1278.69,0.00018769,2]
[378017261,1754669457241,-507.46,0.00018769,2]
[378017262,1754669457250,-471.7,0.00018769,2]
[378017263,1754669457259,-628.16,0.00018769,2]
[378017264,1754669457269,-415.57,0.00018769,2]
[378017265,1754669457279,-400.0,0.00018769,2]
[378017266,1754669457288,-268.77,0.00018769,2]
[378017267,1754669457298,-940.95,0.00018769,2]
[378017268,1754669457308,-637.49,0.00018769,2]
[378017269,1754669457318,-1520.75,0.00018769,2]
[378017270,1754669457327,-400.0,0.00018769,2]
[378017271,1754669457338,-1243.34,0.00018769,2]
[378017272,1754669457347,-553.09,0.00018769,2]
[378017273,1754669457357,-500.0,0.00018769,2]
[378017274,1754669457366,-814.08,0.00018769,2]
[378017275,1754669457376,-808.04,0.00018769,2]
[378017276,1754669457385,-457.87,0.00018769,2]
[378017277,1754669457395,-1105.64,0.00018769,2]
[378017278,1754669457405,-584.06,0.00018769,2]
[378017279,1754669457414,-400.0,0.00018769,2]
[378017280,1754669457424,-630.82,0.00018769,2]
[378017281,1754669457435,-476.28580209,0.00018769,2]
[378017282,1754669457445,-400.0,0.00018769,2]
[378017283,1754669457455,-491.37,0.00018769,2]
[378017284,1754669457464,-423.21,0.00018769,2]
[378017285,1754669457474,-1250.67,0.00018769,2]
[378017286,1754669457484,-1281.81,0.00018769,2]
[378017287,1754669457493,-400.0,0.00018769,2]
[378017288,1754669457503,-400.0,0.00018769,2]
[378017289,1754669457513,-1423.91,0.00018769,2]
[378017290,1754669457524,-400.0,0.00018769,2]
[378017291,1754669457533,-1446.64,0.00018769,2]
[378017292,1754669457542,-441.0,0.00018769,2]
[378017293,1754669457552,-452.32,0.00018769,2]
[378017294,1754669457562,-579.16,0.0001877,2]
[378017295,1754669457572,-150.0,0.0001877,2]
[378017296,1754669457583,-247.72,0.0001877,2]
[378017297,1754669457593,-500.0,0.0001877,2]
[378017298,1754669457603,-500.0,0.0001877,2]
[378017299,1754669457612,-500.0,0.0001877,2]
[378017300,1754669457622,-500.0,0.0001877,2]
[378017301,1754669457632,-500.0,0.0001877,2]
[378017302,1754669457642,-500.0,0.0001877,2]
[378017303,1754669457652,-436.95,0.00018771,2]
[378017304,1754669457662,-792.81,0.00018771,2]
[378017305,1754669457671,-3793.3,0.00018771,2]
[378017306,1754669457681,-451.66,0.00018771,2]
[378017307,1754669457692,-579.16,0.00018771,2]
[378017308,1754669457705,-400.0,0.00018771,2]
[378017309,1754669457715,-400.0,0.00018771,2]
[378017310,1754669457725,-2754.9,0.00018771,2]
[378017311,1754669457735,-1320.5,0.00018771,2]
[378017312,1754669457745,-3846.14,0.00018771,2]
[378017313,1754669457755,-4806.2,0.00018771,2]
[378017314,1754669457766,-1000.0,0.00018771,2]
[378017315,1754669457777,-2134.23,0.00018771,2]
[378017316,1754669457787,-400.0,0.00018771,2]
[378017317,1754669457797,-3166.04,0.00018771,2]
[378017318,1754669457807,-2847.9,0.00018771,2]
[378017319,1754669457816,-9097.8,0.00018771,2]
[378017320,1754669457826,-1805.08,0.00018771,2]
[378017321,1754669457835,-500.0,0.00018771,2]
[378017322,1754669457846,-2223.45,0.00018771,2]
[378017323,1754669457856,-6174.0,0.00018771,2]
[378017324,1754669457866,-2054.29,0.00018771,2]
[378017325,1754669457876,-1472.26,0.00018771,2]
[378017326,1754669457886,-1850.46,0.00018771,2]
[378017327,1754669457896,-494.97,0.00018771,2]
[378017328,1754669457906,-3935.11,0.00018771,2]
[378017329,1754669457915,-400.0,0.00018771,2]
[378017330,1754669457925,-2515.89,0.00018771,2]
[378017331,1754669457935,-1608.52,0.00018771,2]
[378017332,1754669457945,-1303.48,0.00018771,2]
[378017333,1754669457955,-4223.69,0.00018771,2]
[378017334,1754669457965,-1741.72,0.00018771,2]
[378017335,1754669457974,-3140.44,0.00018771,2]
[378017336,1754669457984,-2410.98,0.00018771,2]
[378017337,1754669457994,-2021.3,0.00018771,2]
[378017338,1754669458003,-491.68,0.00018771,2]
[378017339,1754669458013,-500.0,0.00018773,2]
[378017340,1754669458023,-5885.79142521,0.00018779,2]
[378017341,1754669458034,-150.0,0.00018786,2]
[378017342,1754669458044,-7095.10274429,0.00018794,2]
[378017343,1754669458054,-150.0,0.00018799,2]
[378017344,1754669458064,-150.0,0.00018799,2]
[378017345,1754669458074,-2600.0,0.000188,6]
[378017346,1754669458083,-150.0,0.00018804,2]
[378017347,1754669458093,-282.56876889,0.00018804,2]
[378017348,1754669458102,-150.0,0.00018807,2]
[378017349,1754669458112,-150.0,0.00018821,2]
[378017350,1754669458122,-150.0,0.00018825,2]
[378017351,1754669458132,-150.0,0.00018826,2]
[378017352,1754669458142,-199.76760882,0.00018833,2]
[378017353,1754669458152,-151.0,0.00018835,2]
[378017354,1754669458161,-150.0,0.0001884,2]
[378017355,1754669458171,-3421.47323467,0.00018844,2]
[378017356,1754669458182,-150.0,0.00018845,2]
[378017357,1754669458192,-150.0,0.0001885,2]
[378017358,1754669458201,-200.0,0.00018858,2]
[378017359,1754669458211,-176.27,0.00018865,2]
[378017360,1754669458221,-1000.0,0.00018866,2]
[378017361,1754669458230,-150.0,0.0001887,2]
[378017362,1754669458239,-150.0,0.0001887,2]
[378017363,1754669458250,-150.0,0.00018872,2]
[378017364,1754669458261,-150.0,0.0001888,2]
[378017365,1754669458271,-150.0,0.00018884,2]
[378017366,1754669458281,-211.62674257,0.00018886,2]
[378017367,1754669458290,-160.0,0.00018886,2]
[378017368,1754669458300,-842.44706758,0.00018886,2]
[378017369,1754669458309,-457.64618948,0.00018886,2]
[378017370,1754669458319,-150.0,0.00018887,2]
[378017371,1754669458329,-150.0,0.00018888,2]
[378017372,1754669458339,-315.0,0.00018891,2]
[378017373,1754669458349,-7095.10274429,0.00018894,2]
[378017374,1754669458359,-150.0,0.00018895,2]
[378017375,1754669458369,-150.0,0.00018896,2]
[378017376,1754669458378,-5885.79142521,0.00018899,2]
[378017377,1754669458388,-500.0,0.000189,6]
[378017378,1754669458398,-150.0,0.00018902,2]
[378017379,1754669458407,-150.0,0.00018905,2]
[378017380,1754669458417,-150.0,0.00018906,2]
[378017381,1754669458427,-150.0,0.00018907,2]
[378017382,1754669458437,-150.0,0.00018907,2]
[378017383,1754669458446,-150.0,0.00018913,2]
[378017384,1754669458456,-2218.04,0.0001892,2]
[378017385,1754669458465,-500.0,0.00018921,2]
[378017386,1754669458475,-1000.0,0.00018921,2]
[378017387,1754669458485,-504.76803019,0.00018921,2]
[378017388,1754669458494,-1006.93417179,0.00018921,2]
[378017389,1754669458504,-300.32033973,0.00018921,2]
[378017390,1754669458513,-1000.0,0.00018921,2]
[378017391,1754669458523,-1000.0,0.00018921,2]
[378017392,1754669458532,-1000.0,0.00018921,2]
[378017393,1754669458542,-150.0,0.00018923,2]
[378017394,1754669458556,-150.0,0.00018924,2]
[378017395,1754669458566,-150.0,0.00018936,2]
[378017396,1754669458575,-500.0,0.0001894,2]
[378017397,1754669458586,-500.0,0.0001894,2]
[378017398,1754669458596,-855.0,0.00018941,2]
[378017399,1754669458606,-855.0,0.00018941,2]
[378017400,1754669458616,-855.0,0.00018941,2]
[378017401,1754669458625,-855.0,0.00018941,2]
[378017402,1754669458635,-855.0,0.00018941,2]
[378017403,1754669458645,-855.0,0.00018941,2]
[378017404,1754669458654,-855.0,0.00018941,2]
[378017405,1754669458664,-855.0,0.00018941,2]
[378017406,1754669458674,-855.0,0.00018941,2]
[378017407,1754669458686,-855.0,0.00018941,2]
[378017408,1754669458701,-855.0,0.00018941,2]
[378017409,1754669458711,-855.0,0.00018941,2]
[378017410,1754669458721,-855.0,0.00018941,2]
[378017411,1754669458731,-855.0,0.00018941,2]
[378017412,1754669458740,-855.0,0.00018941,2]
[378017413,1754669458751,-855.0,0.00018941,2]
[378017414,1754669458760,-855.0,0.00018941,2]
[378017415,1754669458772,-554.0,0.00018941,2]
[378017416,1754669458782,-554.0,0.00018941,2]
[378017417,1754669458792,-554.0,0.00018941,2]
[378017418,1754669458802,-554.0,0.00018941,2]
[378017419,1754669458812,-554.0,0.00018941,2]
[378017420,1754669458822,-554.0,0.00018941,2]
[378017421,1754669458832,-554.0,0.00018941,2]
[378017422,1754669458842,-554.0,0.00018941,2]
[378017423,1754669458852,-554.0,0.00018941,2]
[378017424,1754669458862,-554.0,0.00018941,2]
[378017425,1754669458872,-554.0,0.00018941,2]
[378017426,1754669458882,-554.0,0.00018941,2]
[378017427,1754669458891,-554.0,0.00018941,2]
[378017428,1754669458901,-554.0,0.00018941,2]
[378017429,1754669458911,-855.0,0.00018941,2]
[378017430,1754669458923,-855.0,0.00018941,2]
[378017431,1754669458933,-855.0,0.00018941,2]
[378017432,1754669458942,-855.0,0.00018941,2]
[378017433,1754669458952,-855.0,0.00018941,2]
[378017434,1754669458961,-855.0,0.00018941,2]
[378017435,1754669458971,-855.0,0.00018941,2]
[378017436,1754669458980,-855.0,0.00018941,2]
[378017437,1754669458990,-855.0,0.00018941,2]
[378017438,1754669459001,-855.0,0.00018941,2]
[378017439,1754669459011,-855.0,0.00018941,2]
[378017440,1754669459021,-855.0,0.00018941,2]
[378017441,1754669459031,-855.0,0.00018941,2]
[378017442,1754669459042,-855.0,0.00018941,2]
[378017443,1754669459053,-855.0,0.00018941,2]
[378017444,1754669459064,-855.0,0.00018941,2]
[378017445,1754669459073,-855.0,0.00018941,2]
[378017446,1754669459083,-554.0,0.00018941,2]
[378017447,1754669459093,-554.0,0.00018941,2]
[378017448,1754669459104,-554.0,0.00018941,2]
[378017449,1754669459116,-554.0,0.00018941,2]
[378017450,1754669459125,-554.0,0.00018941,2]
[378017451,1754669459135,-554.0,0.00018941,2]
[378017452,1754669459148,-554.0,0.00018941,2]
[378017453,1754669459169,-554.0,0.00018941,2]
[378017454,1754669459180,-554.0,0.00018941,2]
[378017455,1754669459190,-554.0,0.00018941,2]
[378017456,1754669459199,-554.0,0.00018941,2]
[378017457,1754669459209,-554.0,0.00018941,2]
[378017458,1754669459219,-554.0,0.00018941,2]
[378017459,1754669459229,-554.0,0.00018941,2]
[378017460,1754669459239,-855.0,0.00018941,2]
[378017461,1754669459250,-554.0,0.00018941,2]
[378017462,1754669459262,-554.0,0.00018941,2]
[378017463,1754669459272,-554.0,0.00018941,2]
[378017464,1754669459282,-554.0,0.00018941,2]
[378017465,1754669459301,-554.0,0.00018941,2]
[378017466,1754669459315,-554.0,0.00018941,2]
[378017467,1754669459325,-554.0,0.00018941,2]
[378017468,1754669459336,-554.0,0.00018941,2]
[378017469,1754669459347,-554.0,0.00018941,2]
[378017470,1754669459358,-554.0,0.00018941,2]
[378017471,1754669459369,-855.0,0.00018941,2]
[378017472,1754669459379,-855.0,0.00018941,2]
[378017473,1754669459390,-855.0,0.00018941,2]
[378017474,1754669459400,-855.0,0.00018941,2]
[378017475,1754669459410,-855.0,0.00018941,2]
[378017476,1754669459421,-855.0,0.00018941,2]
[378017477,1754669459432,-855.0,0.00018941,2]
[378017478,1754669459442,-855.0,0.00018941,2]
[378017479,1754669459452,-855.0,0.00018941,2]
[378017480,1754669459463,-855.0,0.00018941,2]
[378017481,1754669459473,-855.0,0.00018941,2]
[378017482,1754669459484,-855.0,0.00018941,2]
[378017483,1754669459494,-855.0,0.00018941,2]
[378017484,1754669459504,-855.0,0.00018941,2]
[378017485,1754669459515,-855.0,0.00018941,2]
[378017486,1754669459525,-855.0,0.00018941,2]
[378017487,1754669459535,-855.0,0.00018941,2]
[378017488,1754669459546,-554.0,0.00018941,2]
[378017489,1754669459556,-554.0,0.00018941,2]
[378017490,1754669459567,-554.0,0.00018941,2]
[378017491,1754669459577,-554.0,0.00018941,2]
[378017492,1754669459587,-554.0,0.00018941,2]
[378017493,1754669459597,-554.0,0.00018941,2]
[378017494,1754669459607,-554.0,0.00018941,2]
[378017495,1754669459618,-554.0,0.00018941,2]
[378017496,1754669459628,-554.0,0.00018941,2]
[378017497,1754669459638,-554.0,0.00018941,2]
[378017498,1754669459649,-554.0,0.00018941,2]
[378017499,1754669459659,-554.0,0.00018941,2]
[378017500,1754669459669,-554.0,0.00018941,2]
[378017501,1754669459679,-554.0,0.00018941,2]
[378017502,1754669459690,-554.0,0.00018941,2]
[378017503,1754669459705,-554.0,0.00018941,2]
[378017504,1754669459715,-554.0,0.00018941,2]
[378017505,1754669459725,-855.0,0.00018941,2]
[378017506,1754669459736,-855.0,0.00018941,2]
[378017507,1754669459747,-855.0,0.00018941,2]
[378017508,1754669459757,-855.0,0.00018941,2]
[378017509,1754669459768,-855.0,0.00018941,2]
[378017510,1754669459779,-855.0,0.00018941,2]
[378017511,1754669459789,-855.0,0.00018941,2]
[378017512,1754669459800,-855.0,0.00018941,2]
[378017513,1754669459811,-855.0,0.00018941,2]
[378017514,1754669459824,-855.0,0.00018941,2]
[378017515,1754669459835,-855.0,0.00018941,2]
[378017516,1754669459845,-855.0,0.00018941,2]
[378017517,1754669459856,-855.0,0.00018941,2]
[378017518,1754669459866,-855.0,0.00018941,2]
[378017519,1754669459876,-554.0,0.00018941,2]
[378017520,1754669459887,-554.0,0.00018941,2]
[378017521,1754669459897,-554.0,0.00018941,2]
[378017522,1754669459907,-554.0,0.00018941,2]
[378017523,1754669459918,-554.0,0.00018941,2]
[378017524,1754669459928,-554.0,0.00018941,2]
[378017525,1754669459939,-554.0,0.00018941,2]
[378017526,1754669459949,-554.0,0.00018941,2]
[378017527,1754669459959,-554.0,0.00018941,2]
[378017528,1754669459969,-554.0,0.00018941,2]
[378017529,1754669459979,-554.0,0.00018941,2]
[378017530,1754669459989,-554.0,0.00018941,2]
[378017531,1754669459999,-554.0,0.00018941,2]
[378017532,1754669460009,-554.0,0.00018941,2]
[378017533,1754669460020,-855.0,0.00018941,2]
[378017534,1754669460030,-855.0,0.00018941,2]
[378017535,1754669460040,-855.0,0.00018941,2]
[378017536,1754669460051,-855.0,0.00018941,2]
[378017537,1754669460062,-855.0,0.00018941,2]
[378017538,1754669460073,-855.0,0.00018941,2]
[378017539,1754669460349,-855.0,0.00018941,2]
[378017540,1754669460359,-855.0,0.00018941,2]
[378017541,1754669460368,-855.0,0.00018941,2]
[378017542,1754669460378,-855.0,0.00018941,2]
[378017543,1754669460388,-855.0,0.00018941,2]
[378017544,1754669460397,-855.0,0.00018941,2]
[378017545,1754669460406,-855.0,0.00018941,2]
[378017546,1754669460416,-855.0,0.00018941,2]
[378017547,1754669460425,-855.0,0.00018941,2]
[378017548,1754669460435,-855.0,0.00018941,2]
[378017549,1754669460445,-554.0,0.00018941,2]
[378017550,1754669460454,-554.0,0.00018941,2]
[378017551,1754669460463,-554.0,0.00018941,2]
[378017552,1754669460473,-554.0,0.00018941,2]
[378017553,1754669460482,-554.0,0.00018941,2]
[378017554,1754669460491,-554.0,0.00018941,2]
[378017555,1754669460500,-554.0,0.00018941,2]
[378017556,1754669460510,-554.0,0.00018941,2]
[378017557,1754669460519,-554.0,0.00018941,2]
[378017558,1754669460528,-554.0,0.00018941,2]
[378017559,1754669460539,-554.0,0.00018941,2]
[378017560,1754669460548,-554.0,0.00018941,2]
[378017561,1754669460559,-554.0,0.00018941,2]
[378017562,1754669460569,-554.0,0.00018941,2]
[378017563,1754669460578,-855.0,0.00018941,2]
[378017564,1754669460587,-855.0,0.00018941,2]
[378017565,1754669460597,-855.0,0.00018941,2]
[378017566,1754669460607,-855.0,0.00018941,2]
[378017567,1754669460617,-855.0,0.00018941,2]
[378017568,1754669460626,-855.0,0.00018941,2]
[378017569,1754669460635,-855.0,0.00018941,2]
[378017570,1754669460644,-855.0,0.00018941,2]
[378017571,1754669460654,-855.0,0.00018941,2]
[378017572,1754669460663,-855.0,0.00018941,2]
[378017573,1754669460672,-855.0,0.00018941,2]
[378017574,1754669460683,-855.0,0.00018941,2]
[378017575,1754669460695,-855.0,0.00018941,2]
[378017576,1754669460709,-855.0,0.00018941,2]
[378017577,1754669460718,-855.0,0.00018941,2]
[378017578,1754669460729,-554.0,0.00018941,2]
[378017579,1754669460739,-554.0,0.00018941,2]